bitfinex-derivatives/quotes_SOLF0:USTF0_20250424
["timestamp","ask_amount","ask_price","bid_price","bid_amount"]
[1745501937561,25.86,149.18,149.08,386.8247]
[1745501937759,25.3136354,149.16,149.08,358.9788]
[1745501937960,25.3136354,149.16,149.04,1.8712]
[1745501938555,6.7041,149.12,149.04,1.8712]
[1745501938758,25.86,149.11,149.04,1.8712]
[1745501939159,25.86,149.11,149.09,6.7049]
[1745501939355,25.86,149.11,149.04,1.8712]
[1745501940560,51.1736354,149.11,149.03,357.0]
[1745501940858,2.0157,149.1,149.03,357.0]
[1745501941057,3.9307,149.1,149.03,357.0]
[1745501941259,25.3136354,149.14,149.03,357.0]
[1745501941462,25.86,149.13,149.05,25.3136354]
[1745501941759,25.86,149.15,149.06,6.0747]
[1745501941952,25.86,149.16,149.06,6.0747]
[1745501942960,6.7029,149.15,149.11,6.704]
[1745501943455,6.7029,149.15,149.06,6.0747]
[1745501943456,25.86,149.16,149.06,4.005]
[1745501943759,6.7039,149.12,149.08,6.7054]
[1745501943958,25.86,149.11,149.03,357.0]
[1745501944161,32.5644,149.11,149.08,6.7054]
[1745501944360,25.86,149.11,149.03,357.0]
[1745501944661,25.86,149.11,149.08,6.7054]
[1745501944860,25.86,149.11,149.03,357.0]
[1745501945563,25.86,149.11,149.09,6.7049]
[1745501945859,25.86,149.14,149.08,25.3136354]
[1745501946161,25.86,149.16,149.09,3.8034]
[1745501946356,25.86,149.15,149.09,3.8034]
[1745501946557,25.86,149.15,149.14,6.7027]
[1745501946861,25.86,149.15,149.09,3.8034]
[1745501947362,25.86,149.15,149.14,6.7029]
[1745501947760,25.86,149.15,149.09,3.8034]
[1745501947963,25.86,149.15,149.13,6.7032]
[1745501948262,25.86,149.15,149.09,3.8034]
[1745501948562,25.86,149.15,149.14,6.7029]
[1745501949654,25.86,149.18,149.16,6.7019]
[1745501950766,25.86,149.18,149.17,6.7016]
[1745501950965,25.86,149.18,149.09,54.9770354]
[1745501951164,25.86,149.18,149.09,411.9770354]
[1745501951463,25.86,149.18,149.16,6.7019]
[1745501951764,25.86,149.18,149.17,6.7016]
[1745501952065,25.86,149.18,149.09,411.9770354]
[1745501952463,25.86,149.18,149.16,6.7017]
[1745501952756,25.86,149.18,149.09,411.9770354]
[1745501953064,25.86,149.18,149.15,6.7025]
[1745501953266,25.86,149.18,149.09,411.9770354]
[1745501953563,25.86,149.18,149.17,6.7016]
[1745501955167,25.84,149.21,149.19,6.7004]
[1745501955371,25.84,149.21,149.13,1.8998]
[1745501955665,25.84,149.21,149.18,6.7009]
[1745501955968,25.84,149.21,149.13,1.8998]
[1745501956767,25.84,149.21,149.17,6.7011]
[1745501956968,32.5401,149.21,149.13,1.8998]
[1745501957271,25.84,149.21,149.2,6.7002]
[1745501958470,6.6989,149.23,149.2,6.7002]
[1745501958670,25.84,149.22,149.2,6.7002]
[1745501958967,25.84,149.22,149.18,6.7007]
[1745501959167,25.3136354,149.21,149.13,357.0]
[1745501959370,27.2492354,149.21,149.09,384.7515]
[1745501959567,6.7016,149.17,149.09,384.7515]
[1745501959772,25.88,149.16,149.14,6.7026]
[1745501960373,25.88,149.16,149.15,6.7025]
[1745501960867,25.88,149.16,149.11,6.704]
[1745501961170,6.7027,149.15,149.09,357.0]
[1745501961567,25.88,149.16,149.09,357.0]
[1745501962373,25.88,149.16,149.15,6.7025]
[1745501962671,25.88,149.19,149.1,51.1936354]
[1745501962871,25.88,149.19,149.1,410.2552354]
[1745501963068,25.88,149.19,149.18,6.7011]
[1745501963574,25.88,149.21,149.2,6.7]
[1745501964174,25.88,149.21,149.19,6.7005]
[1745501964371,25.88,149.21,149.14,4.0633]
[1745501965375,25.88,149.21,149.2,6.7002]
[1745501966671,25.86,149.24,149.23,6.6989]
[1745501967070,508.5,149.25,149.17,1.8742]
[1745501967276,508.5,149.25,149.17,358.8742]
[1745501967475,508.5,149.25,149.22,6.699]
[1745501967671,508.5,149.25,149.17,358.8742]
[1745501967872,508.5,149.25,149.22,6.6991]
[1745501968177,508.5,149.25,149.17,358.8742]
[1745501968368,508.5,149.25,149.17,357.0]
[1745501968576,533.8136354,149.25,149.17,357.0]
[1745501969178,6.6992,149.23,149.19,6.7004]
[1745501969379,6.6992,149.23,149.17,357.0]
[1745501969677,6.699,149.23,149.2,6.6999]
[1745501970172,6.699,149.23,149.17,357.0]
[1745501970377,6.6985,149.24,149.17,357.0]
[1745501970578,533.8136354,149.25,149.2,6.7]
[1745501970779,533.8136354,149.25,149.17,357.0]
[1745501970975,6.6986,149.24,149.17,357.0]
[1745501971283,482.64,149.25,149.17,357.0]
[1745501971578,25.86,149.24,149.17,357.0]
[1745501971878,25.86,149.23,149.22,6.6991]
[1745501972074,489.3382,149.25,149.22,6.6991]
[1745501972273,25.86,149.24,149.22,6.6991]
[1745501973079,25.86,149.24,149.17,357.0]
[1745501973280,25.86,149.24,149.14,29.9233]
[1745501973579,32.5586,149.24,149.21,6.6995]
[1745501973778,25.86,149.24,149.21,6.6995]
[1745501974980,32.5586,149.24,149.21,6.6995]
[1745501976276,6.699,149.23,149.21,6.6995]
[1745501976481,6.699,149.23,149.2,6.7]
[1745501976778,25.86,149.24,149.14,2.0307]
[1745501976982,6.7003,149.2,149.17,6.7013]
[1745501977180,25.86,149.19,149.12,357.0]
[1745501977379,32.5609,149.19,149.16,6.7017]
[1745501977579,25.86,149.19,149.12,357.0]
[1745501978177,25.86,149.19,149.18,6.7011]
[1745501979883,25.86,149.23,149.13,1.899]
[1745501980085,25.86,149.23,149.13,358.899]
[1745501980286,25.86,149.23,149.2,6.7002]
[1745501980587,25.86,149.23,149.13,358.899]
[1745501980775,25.86,149.23,149.18,6.7009]
[1745501980980,25.86,149.23,149.13,358.899]
[1745501982083,25.86,149.23,149.2,6.6999]
[1745501982890,3.9852,149.24,149.14,13.4059]
[1745501983097,25.86,149.24,149.16,25.3136354]
[1745501983291,25.86,149.24,149.17,2.0522]
[1745501984795,25.86,149.24,149.23,6.6989]
[1745501985197,25.86,149.27,149.26,6.6974]
[1745501998309,25.86,149.27,149.21,1.9376]
[1745501998806,25.86,149.27,149.25,6.6977]
[1745501999206,25.86,149.27,149.21,1.9376]
[1745501999407,25.86,149.27,149.26,6.6975]
[1745502000206,25.86,149.27,149.25,6.6978]
[1745502000410,25.86,149.27,149.21,1.9376]
[1745502000903,25.86,149.27,149.26,6.6975]
[1745502003507,41.68060148,149.27,149.25,6.6979]
[1745502003705,41.68060148,149.27,149.2,2.0048]
[1745502004008,41.68060148,149.27,149.25,6.6976]
[1745502004208,41.68060148,149.27,149.2,2.0048]
[1745502004605,48.37770148,149.27,149.25,6.6977]
[1745502004804,41.68060148,149.27,149.25,6.6977]
[1745502005510,41.68060148,149.27,149.19,372.82060148]
[1745502005710,48.37790148,149.27,149.19,372.82060148]
[1745502005911,41.68060148,149.27,149.19,372.82060148]
[1745502006110,15.82060148,149.25,149.19,357.0]
[1745502006406,15.82060148,149.23,149.19,357.0]
[1745502006614,15.82060148,149.21,149.11,21.71210148]
[1745502006910,15.82060148,149.21,149.19,6.7006]
[1745502007110,15.82060148,149.21,149.13,15.82060148]
[1745502007508,15.82060148,149.21,149.18,6.7009]
[1745502007707,15.82060148,149.21,149.11,362.8915]
[1745502007905,15.82060148,149.21,149.11,378.71210148]
[1745502008107,15.82060148,149.21,149.18,6.7011]
[1745502008309,15.82060148,149.21,149.13,15.82060148]
[1745502008708,15.82060148,149.21,149.17,6.7013]
[1745502009008,15.82060148,149.21,149.13,15.82060148]
[1745502009009,22.52060148,149.21,149.13,15.82060148]
[1745502009512,15.82060148,149.21,149.13,15.82060148]
[1745502010204,15.82060148,149.21,149.18,6.7008]
[1745502010812,22.52040148,149.21,149.18,6.7008]
[1745502012215,29.6803,149.22,149.11,362.8915]
[1745502012216,15.82060148,149.19,149.11,360.9113]
[1745502012510,25.84,149.18,149.16,6.702]
[1745502013007,25.84,149.18,149.11,360.9113]
[1745502013211,32.5412,149.18,149.15,6.7023]
[1745502013505,25.84,149.18,149.11,360.9113]
[1745502013705,25.84,149.18,149.16,6.7019]
[1745502014010,25.84,149.18,149.11,360.9113]
[1745502014308,25.84,149.18,149.11,357.0]
[1745502014709,22.52240148,149.17,149.14,6.7026]
[1745502015306,6.7021,149.16,149.14,6.7026]
[1745502015516,15.82060148,149.15,149.06,402.46070148]
[1745502015715,25.84,149.14,149.06,376.62070148]
[1745502016108,6.7034,149.13,149.1,6.7044]
[1745502016316,22.52400148,149.13,149.1,6.7044]
[1745502016813,22.52400148,149.13,149.09,6.7049]
[1745502017013,15.82060148,149.11,149.06,357.0]
[1745502017313,25.84,149.1,149.07,6.7056]
[1745502017515,25.84,149.1,149.02,17.79670148]
[1745502018214,25.84,149.1,149.06,15.82060148]
[1745502018415,25.84,149.1,149.09,6.7052]
[1745502021118,508.38,149.14,149.13,6.7034]
[1745502021611,25.78,149.14,149.13,6.7034]
[1745502022614,41.60060148,149.14,149.06,357.0]
[1745502022809,15.82060148,149.11,149.06,357.0]
[1745502023211,15.82060148,149.11,149.09,6.7051]
[1745502024016,15.82060148,149.11,149.08,6.7055]
[1745502024315,15.82060148,149.11,149.06,357.0]
[1745502025215,15.82060148,149.13,149.06,357.0]
[1745502025413,15.82060148,149.13,149.09,6.705]
[1745502025614,6.704,149.12,149.09,6.705]
[1745502026120,22.52410148,149.13,149.1,6.7047]
[1745502026719,6.7038,149.12,149.1,6.7047]
[1745502027417,32.4831,149.14,149.11,6.7039]
[1745502027616,15.82060148,149.13,149.06,357.0]
[1745502027818,22.52420148,149.13,149.1,6.7045]
[1745502028114,25.78,149.14,149.06,357.0]
[1745502028115,15.82060148,149.11,149.06,357.0]
[1745502028418,22.52440148,149.13,149.1,6.7047]
[1745502029521,6.7039,149.12,149.09,6.7049]
[1745502029920,6.7039,149.12,149.1,6.7045]
[1745502030220,15.82060148,149.13,149.1,6.7045]
[1745502031221,22.52410148,149.13,149.1,6.7045]
[1745502032219,6.7039,149.12,149.1,6.7045]
[1745502032420,15.82060148,149.11,149.06,357.0]
[1745502032618,25.78,149.1,149.06,357.0]
[1745502032921,25.78,149.1,149.03,19.80480148]
[1745502033622,25.78,149.1,149.09,6.7052]
[1745502035729,25.78,149.1,149.08,6.7054]
[1745502037128,15.82060148,149.09,149.07,6.7059]
[1745502037627,22.52600148,149.09,149.06,6.7063]
[1745502037927,15.82060148,149.07,149.01,357.0]
[1745502038223,25.8,149.06,149.05,6.7067]
[1745502041025,25.8,149.06,149.04,6.7072]
[1745502041430,25.8,149.06,149.01,357.0]
[1745502041728,25.8,149.06,149.05,6.707]
[1745502043330,505.32470148,149.12,149.09,6.7048]
[1745502043525,25.8,149.11,149.09,6.7048]
[1745502044030,15.82060148,149.1,149.01,357.0]
[1745502044229,15.82060148,149.06,149.01,357.0]
[1745502044528,15.82060148,149.04,149.02,6.708]
[1745502044722,15.82060148,149.04,148.99,1.9911]
[1745502045129,15.82060148,149.04,149.02,6.7079]
[1745502045331,15.82060148,149.04,148.99,1.9911]
[1745502045833,15.82060148,149.04,149.02,6.7082]
[1745502046031,15.82060148,149.04,148.99,1.9911]
[1745502047032,15.82060148,149.04,149.02,6.708]
[1745502048336,25.8,149.05,148.99,1.9911]
[1745502049536,15.82060148,149.04,148.99,1.9911]
[1745502049734,15.82060148,149.04,148.98,1.9213]
[1745502050035,22.52810148,149.04,149.01,6.7086]
[1745502050235,15.82060148,149.04,148.96,357.0]
[1745502050438,15.82060148,149.02,148.99,6.7093]
[1745502050736,25.88,149.01,148.99,6.7093]
[1745502051136,25.88,149.01,149.0,6.7092]
[1745502051433,15.82060148,149.04,148.96,357.0]
[1745502051637,41.70060148,149.04,148.96,357.0]
[1745502051939,48.40800148,149.04,148.96,357.0]
[1745502052232,41.70060148,149.04,149.02,6.7082]
[1745502052837,41.70060148,149.04,149.01,6.7085]
[1745502053140,41.70060148,149.04,148.96,357.0]
[1745502053436,41.70060148,149.04,149.02,6.708]
[1745502053736,41.70060148,149.04,148.96,357.0]
[1745502053936,41.70060148,149.04,149.01,6.7085]
[1745502054139,41.70060148,149.04,148.96,357.0]
[1745502054338,48.40810148,149.04,148.96,357.0]
[1745502054540,41.70060148,149.04,148.96,357.0]
[1745502054738,15.82060148,149.02,148.96,357.0]
[1745502054934,22.52920148,149.02,148.96,357.0]
[1745502055134,15.82060148,149.0,148.96,357.0]
[1745502055331,15.82060148,148.98,148.89,25.9]
[1745502055544,22.53100148,148.98,148.89,386.9585]
[1745502055838,15.82060148,148.96,148.94,6.7119]
[1745502056638,15.82060148,148.96,148.89,386.9585]
[1745502056639,22.53190148,148.96,148.93,6.7122]
[1745502056940,48.43190148,148.96,148.93,6.7122]
[1745502057141,48.43190148,148.96,148.92,6.7124]
[1745502057733,15.82060148,148.94,148.91,6.7132]
[1745502058244,22.53290148,148.94,148.9,6.7136]
[1745502058736,22.53290148,148.94,148.86,49.19419945]
[1745502058737,22.53290148,148.94,148.86,25.9]
[1745502060141,22.53290148,148.94,148.91,6.713]
[1745502061243,6.7124,148.93,148.9,6.7135]
[1745502061545,25.9,148.96,148.84,21.67320148]
[1745502061546,41.72060148,148.92,148.84,21.67320148]
[1745502061737,25.9,148.92,148.84,21.67320148]
[1745502062047,25.9,148.92,148.9,6.7135]
[1745502062242,41.72060148,148.92,148.84,5.8526]
[1745502062442,22.53440148,148.9,148.86,6.7151]
[1745502062840,15.82060148,148.9,148.83,357.0]
[1745502063246,15.82060148,148.9,148.87,6.7148]
[1745502063540,41.72060148,148.92,148.83,15.82060148]
[1745502063747,6.7139,148.9,148.87,6.7149]
[1745502063945,15.82060148,148.9,148.82,1.8823]
[1745502064546,15.82060148,148.88,148.77,25.9]
[1745502064742,15.82060148,148.88,148.78,15.82060148]
[1745502064743,25.9,148.87,148.78,15.82060148]
[1745502065047,6.7157,148.86,148.78,15.82060148]
[1745502065245,15.82060148,148.86,148.77,27.7823]
[1745502065549,15.82060148,148.86,148.77,1.8823]
[1745502065747,15.82060148,148.84,148.77,1.8823]
[1745502065943,25.9,148.83,148.77,1.8823]
[1745502066144,25.9,148.83,148.76,360.9204]
[1745502066145,6.7177,148.82,148.78,6.7188]
[1745502066345,22.53830148,148.82,148.78,6.7188]
[1745502066646,17.86330148,148.82,148.72,15.82060148]
[1745502067142,15.82060148,148.8,148.72,15.82060148]
[1745502067342,15.82060148,148.78,148.71,357.0]
[1745502067750,22.53980148,148.78,148.74,6.7206]
[1745502068148,15.82060148,148.78,148.7,25.9]
[1745502068446,15.82060148,148.76,148.69,31.0589326]
[1745502068646,25.92,148.75,148.69,46.87953408]
[1745502068849,25.92,148.75,148.72,6.7216]
[1745502069050,15.82060148,148.74,148.63,382.92]
[1745502069353,15.82060148,148.72,148.68,6.7235]
[1745502069550,25.92,148.71,148.68,6.7235]
[1745502069847,25.92,148.71,148.63,45.63630148]
[1745502070051,15.82060148,148.7,148.63,3.8957]
[1745502070353,15.82060148,148.7,148.61,7.76473315]
[1745502070650,15.82060148,148.7,148.62,15.82060148]
[1745502070851,25.92,148.71,148.68,6.7234]
[1745502071352,25.92,148.71,148.62,15.82060148]
[1745502071952,25.92,148.71,148.68,6.7236]
[1745502072153,25.92,148.71,148.64,15.82060148]
[1745502072550,25.92,148.71,148.68,6.7233]
[1745502072750,25.92,148.71,148.62,15.82060148]
[1745502072954,25.92,148.71,148.69,6.723]
[1745502073253,25.92,148.71,148.64,15.82060148]
[1745502073652,25.92,148.71,148.7,6.7227]
[1745502074352,25.92,148.71,148.63,15.82060148]
[1745502074751,25.92,148.71,148.7,6.7227]
[1745502075350,25.92,148.71,148.63,15.82060148]
[1745502075758,25.92,148.71,148.68,6.7234]
[1745502075955,25.92,148.71,148.63,15.82060148]
[1745502076158,25.92,148.71,148.61,357.0]
[1745502076358,15.82060148,148.68,148.64,6.7255]
[1745502076658,25.94,148.67,148.64,6.7255]
[1745502076854,25.94,148.67,148.66,6.7246]
[1745502077255,25.94,148.7,148.62,15.82060148]
[1745502077759,25.94,148.7,148.64,15.82060148]
[1745502078058,25.94,148.7,148.69,6.7232]
[1745502078251,25.94,148.7,148.64,15.82060148]
[1745502079561,25.94,148.7,148.63,25.51123618]
[1745502082165,25.94,148.7,148.67,6.7238]
[1745502082465,25.94,148.7,148.61,357.0]
[1745502083165,32.6629,148.7,148.67,6.724]
[1745502083365,25.94,148.7,148.61,357.0]
[1745502083664,25.94,148.7,148.67,6.7238]
[1745502084460,25.94,148.7,148.61,357.0]
[1745502084763,6.7235,148.69,148.61,357.0]
[1745502085163,25.94,148.7,148.61,357.0]
[1745502085868,32.6629,148.7,148.61,357.0]
[1745502086265,25.94,148.7,148.61,357.0]
[1745502086465,25.94,148.7,148.67,6.7238]
[1745502086966,32.6628,148.7,148.67,6.7238]
[1745502087160,25.94,148.7,148.61,357.0]
[1745502087667,25.94,148.7,148.69,6.7232]
[1745502087867,26.88,148.74,148.66,25.51123618]
[1745502088167,26.88,148.74,148.67,2.0457]
[1745502088367,26.88,148.74,148.67,32.9618]
[1745502088970,26.88,148.74,148.73,6.7214]
[1745502089167,26.88,148.77,148.69,25.51123618]
[1745502089663,26.88,148.77,148.74,6.7206]
[1745502089864,26.88,148.77,148.67,389.9618]
[1745502090067,6.7208,148.75,148.67,389.9618]
[1745502090367,26.88,148.77,148.67,389.9618]
[1745502090662,26.88,148.77,148.7,6.7225]
[1745502090868,25.51123618,148.75,148.62,25.51123618]
[1745502091072,25.51123618,148.75,148.62,2.0355]
[1745502091273,6.7226,148.71,148.68,6.7236]
[1745502091467,26.88,148.7,148.62,2.0355]
[1745502091667,26.88,148.74,148.64,25.51123618]
[1745502092374,6.7215,148.73,148.64,25.51123618]
[1745502092670,52.39123618,148.74,148.62,359.0355]
[1745502092870,6.7225,148.71,148.67,6.7237]
[1745502093070,26.88,148.7,148.67,6.7237]
[1745502093573,26.88,148.7,148.62,359.0355]
[1745502094168,26.88,148.7,148.68,6.7233]
[1745502094474,26.88,148.7,148.62,359.0355]
[1745502095374,26.88,148.7,148.68,6.7235]
[1745502096474,26.88,148.7,148.69,6.7232]
[1745502099276,28.8413,148.73,148.71,6.722]
[1745502099776,26.88,148.73,148.72,6.7218]
[1745502100177,26.88,148.73,148.65,26.88]
[1745502100368,26.88,148.73,148.71,6.722]
[1745502100571,26.88,148.73,148.65,26.88]
[1745502100975,26.88,148.73,148.71,6.7221]
[1745502101175,26.88,148.73,148.65,26.88]
[1745502101376,26.88,148.73,148.65,42.82157374]
[1745502101578,33.6016,148.73,148.7,6.7224]
[1745502101873,33.6016,148.73,148.65,42.82157374]
[1745502102377,33.6016,148.73,148.7,6.7225]
[1745502102580,26.88,148.73,148.67,15.94157374]
[1745502102777,26.88,148.73,148.68,2.0447]
[1745502103176,26.88,148.73,148.65,26.88]
[1745502103378,26.88,148.73,148.66,15.94157374]
[1745502103579,33.6016,148.73,148.7,6.7225]
[1745502103880,33.6016,148.73,148.66,15.94157374]
[1745502104176,26.88,148.73,148.66,15.94157374]
[1745502104568,26.88,148.73,148.68,15.94157374]
[1745502104768,26.88,148.73,148.65,26.88]
[1745502104968,26.88,148.73,148.66,15.94157374]
[1745502105278,26.88,148.73,148.71,6.7223]
[1745502105683,26.88,148.73,148.7,15.94157374]
[1745502105872,26.88,148.73,148.68,15.94157374]
[1745502106474,6.7212,148.74,148.71,6.7221]
[1745502106680,26.88,148.76,148.68,15.94157374]
[1745502107681,33.6002,148.76,148.73,6.7214]
[1745502108376,26.88,148.76,148.74,6.7209]
[1745502108680,26.88,148.76,148.69,15.94157374]
[1745502109182,33.6003,148.76,148.73,6.7213]
[1745502110675,6.7212,148.74,148.71,6.7223]
[1745502111383,42.82157374,148.76,148.67,22.05087374]
[1745502112082,6.721,148.74,148.71,6.7221]
[1745502112382,42.82157374,148.76,148.67,6.1093]
[1745502113277,6.7212,148.74,148.71,6.7221]
[1745502113484,42.82157374,148.76,148.67,22.05087374]
[1745502113977,6.7209,148.75,148.67,22.05087374]
[1745502114582,49.54177374,148.76,148.67,22.05087374]
[1745502114883,26.88,148.76,148.67,22.05087374]
[1745502115080,26.88,148.76,148.69,15.94157374]
[1745502115286,26.88,148.76,148.71,15.94157374]
[1745502115486,26.88,148.76,148.75,6.7205]
[1745502115883,26.9,148.79,148.71,15.94157374]
[1745502116187,26.9,148.79,148.77,6.7195]
[1745502116787,26.9,148.79,148.76,6.7198]
[1745502116981,33.6188,148.79,148.76,6.7198]
[1745502117287,26.9,148.79,148.76,6.7198]
[1745502117586,26.9,148.79,148.71,15.94157374]
[1745502117887,26.9,148.79,148.76,6.7196]
[1745502118384,33.619,148.79,148.76,6.7196]
[1745502119183,26.9,148.79,148.76,6.7196]
[1745502119787,26.9,148.79,148.77,6.7195]
[1745502120187,33.6187,148.79,148.71,15.94157374]
[1745502120390,26.9,148.79,148.71,15.94157374]
[1745502120783,26.9,148.79,148.78,6.7191]
[1745502120984,28.8409,148.82,148.73,42.84157374]
[1745502121291,26.9,148.82,148.75,15.94157374]
[1745502121590,26.9,148.86,148.79,15.94157374]
[1745502121781,2.0548,148.88,148.81,15.94157374]
[1745502121981,2.0548,148.88,148.78,26.9]
[1745502121982,26.9,148.89,148.83,15.94157374]
[1745502122387,26.9,148.89,148.87,6.7148]
[1745502122788,26.9,148.89,148.83,15.94157374]
[1745502122989,42.84157374,148.89,148.79,399.84157374]
[1745502123282,2.0548,148.9,148.83,15.94157374]
[1745502123487,2.0548,148.9,148.85,15.94157374]
[1745502123688,2.0548,148.9,148.83,15.94157374]
[1745502124490,6.7137,148.91,148.85,6.716]
[1745502124888,26.9,148.92,148.83,15.94157374]
[1745502125089,15.94157374,148.91,148.83,15.94157374]
[1745502125591,6.714,148.9,148.81,25.44616645]
[1745502125792,6.714,148.9,148.82,4.0788]
[1745502125992,6.714,148.9,148.84,6.7162]
[1745502126186,6.7134,148.91,148.82,4.0788]
[1745502126490,26.9,148.92,148.82,4.0788]
[1745502126996,6.7141,148.9,148.85,6.716]
[1745502127192,26.9,148.92,148.82,4.0788]
[1745502127392,26.9,148.92,148.84,25.44616645]
[1745502127691,33.6132,148.92,148.87,6.7149]
[1745502127894,26.9,148.92,148.84,25.44616645]
[1745502128193,26.9,148.92,148.88,6.7144]
[1745502128495,26.9,148.92,148.84,25.44616645]
[1745502128688,33.6131,148.92,148.88,6.7145]
[1745502129294,26.9,148.92,148.84,25.44616645]
[1745502129895,33.6131,148.92,148.88,6.7145]
[1745502130494,6.7133,148.91,148.87,6.7149]
[1745502130894,6.7133,148.91,148.88,6.7146]
[1745502131096,26.9,148.92,148.84,25.44616645]
[1745502131699,26.88,148.95,148.87,25.44616645]
[1745502131898,26.88,148.98,148.9,25.44616645]
[1745502132094,33.5904,148.98,148.9,25.44616645]
[1745502132300,26.88,148.98,148.9,25.44616645]
[1745502132994,26.88,148.98,148.94,6.7116]
[1745502133193,33.5904,148.98,148.9,25.44616645]
[1745502133601,6.7106,148.97,148.9,25.44616645]
[1745502134098,6.7114,148.96,148.9,25.44616645]
[1745502134301,26.88,148.98,148.9,25.44616645]
[1745502134699,33.5904,148.98,148.94,6.7117]
[1745502135902,6.7106,148.97,148.94,6.7117]
[1745502136101,26.88,148.98,148.94,6.7117]
[1745502136300,26.88,148.98,148.95,6.7114]
[1745502136600,33.5904,148.98,148.95,6.7114]
[1745502136901,33.5904,148.98,148.9,25.44616645]
[1745502136902,26.88,148.98,148.9,25.44616645]
[1745502137400,26.88,148.98,148.95,6.7111]
[1745502137800,26.88,148.98,148.9,25.44616645]
[1745502138002,26.88,148.98,148.91,1.9226]
[1745502138201,26.88,148.98,148.92,26.88]
[1745502138799,26.88,148.98,148.96,6.7108]
[1745502139101,26.88,148.98,148.92,26.88]
[1745502140001,26.88,148.98,148.97,6.7106]
[1745502140205,1.8974,149.0,148.92,26.88]
[1745502140503,1.8974,149.0,148.97,6.7103]
[1745502140801,26.88,149.01,148.93,25.44616645]
[1745502141002,26.88,149.01,148.97,6.7102]
[1745502141204,33.5891,149.01,148.94,2.0297]
[1745502141700,33.5891,149.01,148.98,6.71]
[1745502142003,26.88,149.01,148.98,6.71]
[1745502142199,26.88,149.01,148.94,2.0297]
[1745502142407,26.6,149.04,148.96,25.44616645]
[1745502142703,26.6,149.07,148.97,26.6]
[1745502142895,26.6,149.07,148.99,25.44616645]
[1745502143300,26.6,149.07,149.0,1.9307]
[1745502143902,33.3061,149.07,149.03,6.7078]
[1745502144302,33.3061,149.07,149.0,1.9307]
[1745502144804,26.6,149.07,149.0,1.9307]
[1745502145296,33.3062,149.07,149.0,1.9307]
[1745502145502,33.3062,149.07,149.01,15.86560492]
[1745502145702,26.6,149.07,149.01,15.86560492]
[1745502145901,6.7065,149.06,149.0,1.9307]
[1745502146101,6.7065,149.06,149.02,6.7081]
[1745502146708,6.7065,149.06,149.03,6.7078]
[1745502146897,6.7065,149.06,149.0,1.9307]
[1745502147403,6.7065,149.06,149.02,6.708]
[1745502147603,15.86560492,149.05,148.97,383.6]
[1745502147806,15.86560492,149.05,149.0,6.7089]
[1745502148097,15.86560492,149.05,148.97,383.6]
[1745502148303,6.7076,149.04,148.97,383.6]
[1745502148502,6.7076,149.04,149.0,6.7088]
[1745502148703,6.7081,149.03,149.0,6.7088]
[1745502149508,6.7086,149.02,148.97,26.6]
[1745502149705,1.8826,149.04,148.97,26.6]
[1745502150009,6.7083,149.02,148.99,6.7094]
[1745502150412,26.6,149.03,148.99,6.7094]
[1745502150607,26.6,149.03,148.97,42.46560492]
[1745502151811,33.3079,149.03,149.0,6.709]
[1745502152313,26.6,149.03,149.0,6.709]
[1745502152705,42.46560492,149.03,148.95,17.84980492]